bitfinex-derivatives/quotes_ETHF0:USTF0_20260316
["timestamp","ask_amount","ask_price","bid_price","bid_amount"]
[1773640127719,11.15376926,2276.4,2274.7,3.61319337]
[1773640127917,11.15376926,2276.4,2274.6,8.18375476]
[1773640127918,11.15376926,2276.4,2274.8,5.46727815]
[1773640128118,11.15376926,2276.4,2274.9,5.46727815]
[1773640128417,0.00392502,2276.6,2275.0,5.46727815]
[1773640128418,11.15376926,2276.2,2275.0,5.46727815]
[1773640128724,11.15376926,2276.2,2275.1,5.46727815]
[1773640128925,11.15376926,2276.2,2275.2,5.46727815]
[1773640129121,11.15376926,2276.2,2275.0,0.00359873]
[1773640129322,11.15376926,2276.2,2275.1,5.47167885]
[1773640129620,11.15376926,2276.2,2275.2,5.47167885]
[1773640129822,11.15376926,2276.2,2275.0,0.00359873]
[1773640130018,11.15376926,2276.2,2275.1,5.47339563]
[1773640130218,11.15376926,2276.2,2275.2,5.47339563]
[1773640130419,11.15376926,2276.2,2275.0,0.00359873]
[1773640130723,11.15376926,2276.2,2275.1,5.47316759]
[1773640130924,11.15376926,2276.0,2275.2,5.47316759]
[1773640131223,11.15376926,2276.0,2275.0,0.00359873]
[1773640131423,11.15376926,2276.0,2275.1,5.47268774]
[1773640131625,11.15376926,2276.0,2275.0,0.00359873]
[1773640131924,11.15376926,2276.0,2275.1,5.47120596]
[1773640132123,11.15376926,2276.0,2275.0,0.00359873]
[1773640132324,11.15376926,2276.0,2275.1,5.49996195]
[1773640132522,11.15376926,2276.0,2275.0,0.00359873]
[1773640132722,11.15376926,2276.0,2275.1,5.49918109]
[1773640133022,11.15376926,2276.0,2275.0,0.00359873]
[1773640133324,11.06787935,2275.8,2274.6,3.61319337]
[1773640133525,11.06787935,2275.8,2274.4,8.09121238]
[1773640134020,11.06787935,2275.6,2274.4,8.09121238]
[1773640134220,11.06787935,2275.4,2274.4,8.09121238]
[1773640134524,11.06787935,2275.3,2274.4,8.09576498]
[1773640136427,22.3595357,2275.4,2274.5,10.23418873]
[1773640136620,11.0135357,2275.3,2274.5,10.23418873]
[1773640137028,11.0135357,2275.3,2274.4,3.61774597]
[1773640137228,11.0135357,2275.3,2274.4,13.8519347]
[1773640138322,11.0135357,2275.3,2274.4,10.23874133]
[1773640138826,11.0135357,2275.3,2274.4,0.0045526]
[1773640140128,11.0135357,2275.1,2274.4,0.0045526]
[1773640140725,11.0135357,2275.1,2273.9,13.8473821]
[1773640140929,11.0135357,2275.1,2274.0,10.23418873]
[1773640141134,11.0135357,2274.9,2273.8,13.8473821]
[1773640141328,11.0135357,2274.7,2273.6,13.8473821]
[1773640141533,11.0135357,2274.7,2273.5,10.23418873]
[1773640141829,11.01815788,2274.7,2273.5,10.2392432]
[1773640144430,7.16371639,2274.8,2273.7,10.23418873]
[1773640144733,11.0135357,2275.7,2274.4,9.86640807]
[1773640145423,11.01779624,2275.7,2274.6,10.23418873]
[1773640145628,11.01779624,2275.7,2274.7,5.2778352]
[1773640145825,11.01779624,2275.7,2274.6,10.23418873]
[1773640146128,11.01779624,2275.7,2274.7,5.27769517]
[1773640146328,11.01779624,2275.7,2274.6,10.23418873]
[1773640146531,11.01779624,2275.7,2274.7,5.26111103]
[1773640146731,11.0135357,2275.5,2274.6,10.23418873]
[1773640146927,11.01779624,2275.7,2274.8,10.18318127]
[1773640147136,11.01779624,2275.7,2275.0,10.0050241]
[1773640147337,11.01779624,2275.7,2275.1,5.26108145]
[1773640147533,11.01779624,2275.7,2275.1,0.00435872]
[1773640148341,11.01779624,2275.7,2275.2,5.26322537]
[1773640148530,11.01779624,2275.7,2275.1,0.00435872]
[1773640148731,11.01779624,2275.7,2275.2,5.26269934]
[1773640148933,11.01779624,2275.7,2275.1,0.00435872]
[1773640149234,11.01779624,2275.7,2275.2,5.26382592]
[1773640149435,11.01779624,2275.7,2275.3,5.26382592]
[1773640149638,11.01779624,2275.7,2275.1,0.00435872]
[1773640149836,11.01779624,2275.7,2275.2,5.26854046]
[1773640150034,11.01779624,2275.7,2275.3,5.26854046]
[1773640150227,11.01779624,2275.7,2275.1,0.00435872]
[1773640150228,11.01779624,2275.7,2275.4,5.27406198]
[1773640150437,11.01779624,2275.7,2275.1,10.00405672]
[1773640150638,11.01779624,2275.7,2275.2,5.27405626]
[1773640150939,11.01779624,2275.7,2275.3,5.27405626]
[1773640151136,11.01779624,2275.7,2275.4,5.27405626]
[1773640151336,11.01779624,2275.7,2275.1,10.00405672]
[1773640151536,11.01779624,2275.7,2275.2,5.27595436]
[1773640151738,10.28934383,2275.7,2275.3,5.27595436]
[1773640151936,10.28934383,2275.7,2275.4,5.27595436]
[1773640152143,10.28934383,2275.7,2275.5,5.27595436]
[1773640152446,10.28934383,2275.7,2275.1,13.61725009]
[1773640152640,10.2934743,2275.7,2275.2,15.51118938]
[1773640152944,10.2934743,2275.7,2275.3,5.27700065]
[1773640153145,10.2934743,2275.7,2275.2,10.23418873]
[1773640153146,10.2934743,2275.7,2275.4,5.27700065]
[1773640153347,10.2934743,2275.7,2275.5,5.27700065]
[1773640153645,11.01766617,2275.7,2275.1,13.85174082]
[1773640153847,11.01766617,2275.7,2275.2,5.27760794]
[1773640154143,11.01766617,2275.7,2275.3,5.27760794]
[1773640154350,11.01766617,2275.7,2275.4,5.27760794]
[1773640154549,22.35166617,2275.7,2275.5,5.27760794]
[1773640154740,11.0135357,2276.0,2275.3,3.62746473]
[1773640154944,11.0135357,2275.9,2275.4,5.27730415]
[1773640155145,11.0135357,2275.9,2275.1,10.23854745]
[1773640155345,11.0135357,2275.9,2275.2,5.22476692]
[1773640155540,11.0135357,2275.9,2275.3,5.22476692]
[1773640155738,11.0185912,2275.9,2275.4,5.22476692]
[1773640155944,11.0185912,2275.9,2275.1,0.00435872]
[1773640156148,11.0185912,2275.9,2275.2,5.22482248]
[1773640156346,22.3505912,2275.9,2275.3,5.22482248]
[1773640156559,11.0135357,2275.8,2275.1,0.00435872]
[1773640158242,11.3370555,2275.9,2275.2,10.23418873]
[1773640158448,11.0185912,2275.9,2275.2,10.22547129]
[1773640158655,11.0185912,2275.9,2274.8,13.86165346]
[1773640158849,11.0185912,2275.9,2274.9,10.23418873]
[1773640159047,11.329,2275.8,2274.9,10.23418873]
[1773640159246,11.0135357,2275.7,2274.9,10.23418873]
[1773640159448,11.0135357,2275.7,2274.9,10.23740451]
[1773640160046,11.0135357,2275.7,2274.9,13.86486924]
[1773640160247,11.0135357,2275.7,2274.9,10.23740451]
[1773640161347,11.0135357,2275.5,2274.9,0.00321578]
[1773640164051,22.45527535,2275.4,2274.9,11.30831895]
[1773640164247,11.12827535,2275.3,2274.9,11.30831895]
[1773640164448,11.12827535,2275.6,2274.9,11.30831895]
[1773640164650,11.12827535,2275.9,2275.1,11.30510317]
[1773640165553,11.13140769,2275.9,2275.1,11.30510317]
[1773640166253,11.13140769,2275.9,2275.3,11.30510317]
[1773640166551,11.12827535,2276.1,2275.3,11.30510317]
[1773640166748,6.34887176,2276.2,2275.3,11.30510317]
[1773640166954,6.34887176,2276.2,2274.9,6.69867361]
[1773640166955,11.12827535,2276.9,2276.0,7.01209355]
[1773640167452,11.13381423,2276.9,2276.0,7.01209355]
[1773640168644,11.13381423,2276.9,2276.1,5.06406213]
[1773640168844,11.13381423,2276.9,2276.0,7.01209355]
[1773640169054,11.13381423,2276.9,2276.2,7.09567199]
[1773640169354,11.13381423,2276.9,2276.3,5.06330609]
[1773640169549,11.13381423,2276.9,2276.2,7.09567199]
[1773640169750,11.13381423,2276.9,2276.3,5.06002585]
[1773640169949,11.13381423,2276.9,2275.9,6.96363825]
[1773640170151,11.13381423,2276.9,2276.0,5.05904879]
[1773640170350,11.13381423,2276.9,2276.1,5.05904879]
[1773640170552,11.13381423,2276.9,2275.7,21.70710298]
[1773640170751,11.13381423,2276.9,2275.8,5.05797268]
[1773640170958,11.13381423,2276.9,2275.9,5.05797268]
[1773640171155,11.13381423,2276.9,2275.5,3.62746473]
[1773640171357,11.13381423,2276.9,2275.6,5.05964072]
[1773640171549,11.13381423,2276.9,2275.7,5.05964072]
[1773640171751,11.13381423,2276.9,2275.8,5.05964072]
[1773640171950,11.13381423,2276.9,2275.9,5.05964072]
[1773640172150,11.13381423,2276.9,2275.5,6.55688893]
[1773640172351,11.13381423,2276.9,2275.6,5.05517181]
[1773640172553,11.12827535,2276.7,2275.7,5.05517181]
[1773640172754,11.12827535,2276.7,2275.8,5.05517181]
[1773640172955,11.12827535,2276.7,2275.5,6.55688893]
[1773640173158,11.12827535,2276.7,2275.6,5.05518864]
[1773640173361,11.12827535,2276.7,2275.7,5.05518864]
[1773640173655,11.12827535,2276.7,2275.8,5.05518864]
[1773640173847,11.12827535,2276.7,2275.6,6.74253956]
[1773640174056,11.12827535,2276.7,2275.7,5.05916547]
[1773640174256,11.12827535,2276.7,2275.8,5.05916547]
[1773640174558,11.12827535,2276.5,2275.9,5.05916547]
[1773640174759,11.12827535,2276.5,2275.6,6.74253956]
[1773640174958,11.12827535,2276.5,2275.7,5.06418192]
[1773640175259,11.12827535,2276.5,2275.8,5.06418192]
[1773640175458,11.12827535,2276.5,2275.9,5.06418192]
[1773640175658,11.12827535,2276.5,2275.6,6.74253956]
[1773640175859,11.12827535,2276.5,2275.7,5.0647772]
[1773640176060,11.12827535,2276.5,2275.8,5.0647772]
[1773640176258,11.12827535,2276.5,2275.9,5.0647772]
[1773640176559,11.12827535,2276.5,2275.4,10.28001756]
[1773640176859,11.12827535,2276.5,2275.5,5.06532096]
[1773640177058,11.12827535,2276.5,2275.6,5.06532096]
[1773640177264,11.12827535,2276.5,2275.7,5.06532096]
[1773640177457,11.12827535,2276.5,2275.8,5.06532096]
[1773640177755,11.12827535,2276.5,2275.5,3.62746473]
[1773640177956,11.12827535,2276.5,2275.6,5.06472718]
[1773640178160,11.12827535,2276.5,2275.3,3.62746473]
[1773640178360,11.12827535,2276.5,2275.4,5.0659917]
[1773640178560,11.12827535,2276.5,2275.5,5.0659917]
[1773640178860,11.12827535,2276.5,2275.6,5.06121036]
[1773640179061,11.12827535,2276.5,2275.3,10.23463376]
[1773640179260,11.12827535,2276.5,2275.4,5.06088346]
[1773640179465,11.12827535,2276.5,2275.5,5.06088346]
[1773640179656,11.12827535,2276.5,2275.6,5.06088346]
[1773640179856,11.12827535,2276.5,2275.3,10.23463376]
[1773640180161,11.12827535,2276.5,2275.4,5.05942887]
[1773640180361,11.12827535,2276.5,2275.5,5.05942887]
[1773640180561,11.12827535,2276.5,2275.6,5.05942887]
[1773640180857,11.12827535,2276.3,2274.5,11.30510317]
[1773640181057,11.12827535,2276.1,2274.7,11.30510317]
[1773640181760,11.307,2276.0,2274.7,11.3098435]
[1773640181960,11.12827535,2275.9,2274.7,11.3098435]
[1773640183266,11.12827535,2275.7,2274.7,11.3098435]
[1773640184865,11.12827535,2275.7,2274.7,0.00474033]
[1773640189368,11.12827535,2275.7,2274.2,11.30510317]
[1773640190466,11.12827535,2275.7,2274.2,11.3103305]
[1773640194375,11.307,2275.6,2274.2,11.3103305]
[1773640194578,11.4055237,2275.5,2274.2,11.3103305]
[1773640195679,11.37049998,2275.8,2274.4,11.49176947]
[1773640195877,11.37049998,2275.8,2273.8,0.21522846]
[1773640195878,11.37049998,2274.9,2273.8,11.49176947]
[1773640196075,11.37049998,2275.2,2273.8,11.49176947]
[1773640196275,11.37049998,2275.1,2274.0,11.49176947]
[1773640196775,11.37049998,2275.1,2273.4,11.49176947]
[1773640197077,11.37049998,2275.1,2273.6,11.49176947]
[1773640197078,11.37427812,2275.1,2273.6,11.49176947]
[1773640198476,11.37427812,2275.1,2273.8,11.49176947]
[1773640198879,0.00377814,2275.1,2274.0,11.49176947]
[1773640199076,0.00377814,2275.1,2274.2,11.49176947]
[1773640200682,11.37049998,2275.5,2274.2,11.49176947]
[1773640201882,11.3759978,2275.5,2274.4,11.49176947]
[1773640203680,11.3759978,2275.5,2273.8,11.49176947]
[1773640204876,11.3759978,2275.5,2274.0,11.49176947]
[1773640205092,11.3759978,2275.5,2273.9,0.21987]
[1773640205093,11.3759978,2275.5,2274.2,11.49176947]
[1773640209187,11.3759978,2275.5,2274.4,11.49176947]
[1773640211988,0.00549782,2275.5,2274.6,11.49176947]
[1773640212187,11.37049998,2275.9,2274.8,11.49176947]
[1773640213386,11.37563434,2275.9,2274.8,11.49176947]
[1773640220197,11.37563434,2275.9,2275.0,11.49176947]
[1773640220402,0.00513436,2275.9,2275.2,11.49176947]
[1773640222504,10.72125964,2275.9,2275.2,11.49176947]
[1773640223206,10.72125964,2275.9,2275.0,0.00485987]
[1773640223207,10.72125964,2275.9,2275.0,11.04676286]
[1773640228611,0.00513436,2275.9,2275.0,11.04676286]
[1773640230108,11.203,2276.6,2275.2,11.04190299]
[1773640230412,10.71612528,2276.5,2275.4,11.04190299]
[1773640231109,10.72084041,2276.5,2275.4,11.04190299]
[1773640233315,10.72084041,2276.5,2275.6,11.04190299]
[1773640235312,11.66613675,2277.2,2275.8,11.04190299]
[1773640235313,10.71612528,2277.0,2275.8,11.04190299]
[1773640235616,10.71612528,2277.0,2275.9,10.911]
[1773640235817,10.71612528,2277.0,2276.0,11.04190299]
[1773640236517,10.72077405,2277.0,2276.0,11.04190299]
[1773640236919,10.72077405,2277.0,2275.8,11.04190299]
[1773640239018,10.71612528,2276.6,2275.3,11.04190299]
[1773640239220,10.71612528,2276.4,2275.3,11.04190299]
[1773640239717,10.71612528,2276.2,2274.9,11.04190299]
[1773640240018,10.71612528,2275.8,2274.7,21.94590299]
[1773640240219,0.21968,2275.9,2274.1,6.78769543]
[1773640240220,10.71612528,2275.6,2274.5,11.04190299]
[1773640241116,10.71612528,2275.6,2274.5,11.04497705]
[1773640250016,10.71612528,2275.6,2274.5,0.00307406]
[1773640250423,10.71612528,2275.6,2274.1,11.04190299]
[1773640250424,10.71612528,2275.4,2274.1,11.04190299]
[1773640250615,10.71612528,2275.2,2273.9,21.92490299]
[1773640250822,10.71612528,2275.2,2273.9,11.04190299]
[1773640251522,10.7217903,2275.2,2273.9,11.04538856]
[1773640252427,9.91153267,2275.0,2273.9,11.04538856]
[1773640252621,9.91153267,2275.0,2273.9,0.00348557]
[1773640252817,9.91153267,2275.0,2273.9,10.10192223]
[1773640253021,9.91153267,2274.8,2273.9,10.10192223]
[1773640253720,9.91153267,2274.8,2273.9,0.00348557]
[1773640253921,9.91153267,2274.6,2273.5,10.09843666]
[1773640254123,9.91153267,2274.6,2272.8,10.09843666]
[1773640254319,9.91153267,2274.2,2272.8,10.09843666]
[1773640254519,9.91153267,2273.8,2272.5,10.09843666]
[1773640254935,9.91153267,2273.6,2272.5,0.00349092]
[1773640255222,9.91534325,2273.6,2272.5,0.00349092]
[1773640255422,9.89558759,2273.4,2272.5,0.00349092]
[1773640256130,9.89558759,2273.4,2272.2,10.69273103]
[1773640256318,9.89558759,2273.4,2271.9,10.69273103]
[1773640256523,9.89558759,2273.2,2271.9,10.69273103]
[1773640257127,9.89558759,2273.2,2271.9,10.69715954]
[1773640258030,9.89558759,2273.0,2271.9,10.69715954]
[1773640262930,9.89558759,2273.5,2272.1,10.69273103]
[1773640263233,10.11782179,2273.5,2272.1,10.69273103]
[1773640265436,0.00381058,2273.6,2272.7,10.69273103]
[1773640265735,9.89558759,2274.2,2272.9,10.69273103]
[1773640266835,9.89928208,2274.2,2272.9,10.69273103]
[1773640270835,9.89558759,2274.0,2272.9,10.69273103]
[1773640273343,9.89558759,2273.8,2272.9,10.69273103]
[1773640273540,9.89558759,2273.8,2272.5,10.69273103]
[1773640274341,9.89558759,2273.6,2272.5,10.69273103]
[1773640274544,9.89558759,2273.6,2272.7,10.69273103]
[1773640278154,9.89558759,2274.6,2273.1,10.91268103]
[1773640278644,9.89558759,2274.6,2273.3,10.69273103]
[1773640279346,9.89868896,2274.6,2273.3,10.69273103]
[1773640282248,10.11863969,2274.6,2273.3,10.69273103]
[1773640282444,9.71271144,2274.5,2273.3,10.69273103]
[1773640290955,9.71271144,2274.3,2273.3,10.69273103]
[1773640291550,9.71271144,2274.1,2273.3,10.69273103]
[1773640296466,9.93252144,2274.5,2273.3,10.69273103]
[1773640296666,9.71271144,2274.3,2273.3,10.69273103]
[1773640296866,9.71271144,2274.1,2273.3,10.69273103]
[1773640297061,9.71271144,2274.0,2273.3,10.69273103]
[1773640298265,9.71271144,2274.0,2272.7,9.890575]
[1773640298464,9.71271144,2273.8,2272.7,9.890575]
[1773640298667,9.71271144,2273.6,2272.7,9.890575]
[1773640299972,9.71271144,2273.9,2272.7,9.890575]
[1773640300271,9.71271144,2273.7,2272.7,9.890575]
[1773640300473,9.71271144,2273.5,2272.7,9.890575]
[1773640302065,9.71271144,2273.5,2272.0,9.890575]
[1773640302475,9.71271144,2273.5,2272.1,9.890575]
[1773640302676,9.71271144,2273.3,2272.1,9.890575]
[1773640304276,9.71271144,2273.1,2272.1,9.890575]
[1773640306681,9.71271144,2273.3,2272.1,9.890575]
[1773640308178,9.71271144,2273.1,2272.1,9.890575]
[1773640308382,20.83971144,2273.1,2272.1,9.890575]
[1773640308582,9.71271144,2273.0,2272.1,9.890575]
[1773640308782,9.71702505,2273.0,2272.1,9.890575]
[1773640310286,9.71271144,2272.8,2271.9,9.89500351]
[1773640310586,9.71271144,2272.9,2271.9,9.89500351]
[1773640312981,9.17086931,2272.7,2271.9,0.00442851]
[1773640313181,9.17086931,2272.5,2271.9,0.00442851]
[1773640313785,9.17086931,2272.5,2271.5,9.83632087]
[1773640313985,20.30786931,2272.5,2271.5,9.83632087]
[1773640314186,9.17086931,2272.4,2271.5,9.83632087]
[1773640314580,9.17086931,2272.4,2271.5,9.84094518]
[1773640315083,9.53043284,2272.8,2271.5,9.84094518]
[1773640315281,9.53043284,2272.7,2271.5,9.84094518]
[1773640317083,9.53043284,2272.5,2271.5,9.84094518]
[1773640320394,11.139,2272.8,2271.3,9.40900951]
[1773640320588,9.53043284,2272.4,2271.3,9.40900951]
[1773640320788,9.53043284,2272.2,2270.7,9.40900951]
[1773640320982,0.22003,2272.3,2270.7,9.40900951]
[1773640320983,9.53043284,2272.0,2270.7,9.40900951]
[1773640321390,9.53043284,2272.0,2270.7,9.41233164]
[1773640321786,0.22003,2272.3,2270.7,9.41233164]
[1773640321787,9.53043284,2271.8,2270.7,9.41233164]
[1773640322487,9.75050284,2271.8,2270.7,9.41233164]
[1773640323891,9.53043284,2271.8,2270.7,9.41233164]
[1773640325496,9.53043284,2271.6,2270.7,9.41233164]
[1773640325697,11.151,2271.7,2270.7,9.41233164]
[1773640325895,9.53043284,2271.8,2270.7,9.41233164]
[1773640330597,9.53043284,2271.8,2270.7,9.63251164]
[1773640330800,9.53043284,2271.8,2270.7,9.41233164]
[1773640334700,9.53043284,2271.6,2269.7,9.40900951]
[1773640334904,9.53043284,2271.2,2269.4,9.40900951]
[1773640335106,9.53043284,2271.0,2269.4,9.40900951]
[1773640335408,9.53043284,2270.8,2269.4,9.40900951]
[1773640335809,9.53390243,2270.8,2269.4,9.41388746]
[1773640337906,9.53043284,2270.6,2268.7,9.40900951]
[1773640338204,9.53043284,2270.4,2268.9,9.40900951]
[1773640338399,9.53043284,2270.4,2269.1,9.40900951]
[1773640339006,9.53043284,2270.4,2269.1,9.4139592]
[1773640339910,0.00346959,2270.8,2269.1,9.4139592]
[1773640340106,9.53043284,2271.8,2270.0,9.40900951]
[1773640340311,9.53043284,2271.8,2269.9,0.22026]
[1773640340312,9.53043284,2271.8,2270.2,9.40900951]
[1773640341011,9.75578224,2271.8,2270.4,9.40900951]
[1773640341212,9.53534141,2271.8,2270.4,9.40900951]
[1773640346712,9.53534141,2271.8,2270.6,8.98915662]
[1773640349410,0.00490857,2271.8,2270.6,8.98915662]
[1773640349617,9.28188829,2272.2,2270.8,8.98915662]
[1773640350313,9.28188829,2272.2,2270.4,8.98915662]
[1773640350507,9.28188829,2272.0,2270.4,8.99233768]
[1773640350709,9.28188829,2272.0,2270.5,8.98915662]
[1773640351508,9.28188829,2272.0,2270.7,8.98915662]
[1773640352016,9.28188829,2272.0,2270.9,8.98915662]
[1773640352522,9.28676147,2272.2,2271.0,8.86587447]
[1773640352715,9.28676147,2272.2,2271.1,8.86587447]
[1773640354515,9.28676147,2272.2,2270.9,10.744]
[1773640354718,9.28188829,2272.0,2270.5,8.91917546]
[1773640355129,9.28676147,2272.2,2270.8,8.88280382]
[1773640355515,9.28676147,2272.2,2271.0,8.88280382]
[1773640355714,9.28676147,2272.2,2271.2,8.88280382]
[1773640356312,9.54609924,2272.6,2271.4,8.79965424]
[1773640356518,9.28188829,2272.6,2271.4,8.79965424]
[1773640357320,9.2859424,2272.6,2271.4,8.79965424]
[1773640357717,4.1489424,2272.6,2271.6,8.98915662]
[1773640359522,9.2859424,2272.6,2271.6,8.98915662]
[1773640360732,9.2859424,2272.6,2271.7,19.71715662]
[1773640361019,9.2859424,2272.6,2271.8,8.98915662]
[1773640365927,9.2859424,2272.6,2271.7,10.724]
[1773640368730,9.2859424,2272.6,2271.0,8.98915662]
[1773640368931,9.2859424,2272.6,2271.2,8.98915662]
[1773640371125,9.28188829,2272.4,2270.9,8.98915662]
[1773640371331,9.28188829,2272.1,2270.9,8.98915662]
[1773640371725,9.28188829,2272.1,2271.1,8.98915662]
[1773640372841,9.22356856,2272.4,2271.3,8.38954962]
[1773640373129,9.22356856,2272.4,2271.5,8.38954962]
[1773640373437,9.22356856,2272.4,2271.6,19.11754962]
[1773640376037,9.22356856,2272.4,2271.6,19.12054962]
[1773640377338,9.22356856,2272.4,2271.7,8.32340632]
[1773640377929,9.22356856,2272.4,2271.7,19.05640632]
[1773640379039,9.22356856,2272.4,2271.8,8.32340632]
[1773640379431,8.48267756,2272.6,2271.8,8.32340632]
[1773640383140,8.48267756,2272.6,2271.4,8.32340632]
[1773640383339,8.48267756,2272.6,2271.5,19.06640632]
[1773640383846,8.48267756,2272.6,2271.6,8.32340632]
[1773640384939,8.47862345,2272.4,2271.5,10.743]
[1773640385146,8.47862345,2272.2,2271.5,10.746]
[1773640386946,8.47862345,2272.2,2271.5,19.06940632]
[1773640387648,8.47862345,2272.2,2271.5,10.746]
[1773640392251,8.47862345,2272.2,2271.5,10.761]
[1773640393145,8.47862345,2272.2,2271.5,10.763]
[1773640393650,8.47862345,2272.2,2271.3,8.32340632]
[1773640393852,8.47862345,2272.0,2271.1,19.08740632]
[1773640394352,8.47862345,2272.0,2271.2,8.32340632]
[1773640394852,8.47862345,2272.0,2271.4,8.32340632]
[1773640395051,8.47862345,2272.0,2271.4,19.09140632]
[1773640396150,8.47862345,2272.0,2271.4,10.768]
[1773640396352,8.47862345,2272.0,2271.5,8.32340632]
[1773640397050,8.47862345,2272.0,2271.4,10.768]
[1773640397051,8.47862345,2272.0,2271.4,19.09140632]
[1773640397252,10.28762482,2272.0,2271.4,19.09140632]
[1773640397956,8.47862345,2272.0,2271.4,19.09140632]
[1773640400057,10.28762482,2272.0,2271.1,8.32340632]
[1773640400257,10.28762482,2272.0,2271.2,19.10640632]
[1773640400652,6.91601525,2273.9,2272.2,5.41287]
[1773640400851,16.10427537,2274.4,2273.9,0.44]
[1773640400852,0.26429065,2274.4,2273.9,0.44]
[1773640401051,29.32506547,2274.7,2274.1,5.45973196]
[1773640401052,8.67376325,2274.6,2274.1,5.45973196]
[1773640401257,8.69775752,2274.5,2274.2,5.83355354]
[1773640401455,8.69775752,2274.5,2274.1,3.6394066]
[1773640401754,0.26429065,2274.2,2274.1,0.00342274]
[1773640401958,8.69775752,2274.4,2273.8,3.6394066]
[1773640402256,0.00420001,2274.5,2273.8,5.4026831]
[1773640402257,45.0148573,2274.3,2273.8,5.4026831]
[1773640402961,45.0148573,2274.3,2273.8,5.40779236]
[1773640403261,11.04164936,2274.1,2273.6,3.6394066]
[1773640403460,11.04164936,2274.1,2273.2,4.14516692]
[1773640403655,11.04164936,2273.9,2273.2,4.14516692]
[1773640404255,11.04164936,2273.9,2273.2,4.14937304]
[1773640406963,33.97320794,2273.8,2273.2,4.14937304]
[1773640407662,45.0148573,2273.8,2273.2,4.14937304]
[1773640407963,11.04164936,2273.6,2273.2,0.00420612]
[1773640408760,45.0148573,2273.6,2273.2,0.00420612]
[1773640408961,45.0148573,2273.6,2273.0,3.75613795]
[1773640409163,11.04164936,2273.5,2273.0,3.75613795]
[1773640409457,11.04164936,2273.5,2272.8,3.80194111]
[1773640409458,11.04164936,2273.4,2272.8,3.80194111]
[1773640409653,33.97320794,2273.4,2272.7,2.00482305]
[1773640409857,31.96829669,2273.4,2272.8,0.08721741]
[1773640411064,31.96829669,2273.4,2272.7,0.004666]
[1773640411065,11.31786839,2273.3,2272.7,0.004666]
[1773640411558,11.31211762,2273.0,2272.7,0.004666]
[1773640411959,17.91371762,2273.0,2272.7,0.004666]
[1773640413363,11.32853401,2272.9,2272.7,0.004666]
[1773640413559,11.3320548,2272.9,2272.7,0.004666]
[1773640413761,11.3320548,2272.9,2272.5,0.16033295]
[1773640413961,11.3320548,2272.9,2272.4,10.822]
[1773640413962,11.3320548,2272.9,2272.6,6.38935894]
[1773640414264,43.30035149,2272.9,2272.7,0.5298955]
[1773640414465,43.30035149,2272.9,2272.8,0.5298955]
[1773640414659,31.97181748,2272.9,2272.8,0.53320763]
[1773640414860,37.0036181,2272.9,2272.8,0.53320763]
[1773640415056,48.33714923,2272.9,2272.5,0.03945175]
[1773640415256,41.73554923,2272.9,2272.6,5.78016076]
[1773640415464,41.73554923,2272.9,2272.4,10.822]
[1773640415666,41.73554923,2272.9,2272.5,5.77882191]
[1773640415963,11.33408791,2272.8,2272.6,5.77882191]
[1773640416166,11.33408791,2272.8,2272.4,10.90889807]
[1773640416362,13.32190572,2272.7,2272.5,4.4145091]
[1773640416660,11.34442833,2272.6,2271.8,0.08689807]
[1773640416965,11.342759,2272.5,2271.8,0.08689807]
[1773640417357,17.94450608,2272.3,2271.7,3.6394066]
[1773640417561,11.34290608,2272.2,2271.7,3.79911848]
[1773640417858,11.34290608,2272.5,2271.9,0.15537231]
[1773640418457,11.37179878,2272.3,2271.7,3.70015888]
[1773640418859,11.37179878,2272.3,2271.7,0.06075228]
[1773640420467,11.3739777,2272.1,2271.7,0.00433957]
[1773640422564,17.9755777,2272.1,2271.7,0.00433957]
[1773640422760,11.3739777,2272.1,2271.7,0.00433957]
[1773640422967,17.9755777,2272.1,2271.7,0.00433957]
[1773640423367,28.45019344,2272.0,2271.7,0.00433957]
[1773640423572,11.37008106,2271.9,2271.7,0.00433957]
[1773640423771,10.94090691,2271.9,2271.7,0.00433957]
[1773640423966,6.6016,2271.8,2271.7,0.00433957]
[1773640424171,12.80609847,2271.8,2271.7,0.00433957]
[1773640424571,12.08809847,2271.8,2271.7,0.00433957]
[1773640424775,11.15234683,2271.7,2271.4,13.54480211]
[1773640424974,24.47425255,2271.7,2271.4,9.90539551]
[1773640425767,24.47425255,2271.7,2271.4,9.90922621]
[1773640426480,11.14321983,2271.6,2271.4,9.90922621]
[1773640426877,11.14321983,2272.1,2271.4,9.90922621]
[1773640427174,11.14321983,2272.0,2271.4,9.90922621]
[1773640427474,11.14321983,2272.0,2271.4,13.54863281]
[1773640427866,30.11614901,2272.1,2271.5,0.59922418]
[1773640428067,11.44069451,2272.4,2271.7,3.6394066]
[1773640428272,11.43990543,2272.2,2271.6,3.6394066]
[1773640428575,11.43990543,2272.2,2271.7,5.56795312]
[1773640428775,11.43990543,2272.0,2271.8,5.56795312]
[1773640428973,11.43990543,2272.0,2271.9,4.55451159]
[1773640429174,11.43990543,2272.0,2271.9,4.17480809]
[1773640429471,11.43990543,2272.0,2271.5,3.6394066]
[1773640429668,11.44696188,2271.8,2271.5,3.6394066]
[1773640429976,11.44696188,2272.1,2271.5,4.58101266]
[1773640430373,11.48129493,2271.9,2271.4,3.6432373]
[1773640431072,11.48129493,2271.9,2271.4,4.50535973]
[1773640431467,0.00383925,2272.9,2271.4,4.50535973]
[1773640431468,11.09548493,2272.9,2271.9,1.60752742]
[1773640431773,11.09164568,2272.7,2272.0,1.60752742]
[1773640433077,11.49903368,2272.5,2271.9,10.882]
[1773640433576,0.00383925,2272.9,2271.9,10.882]
[1773640433577,11.49903368,2272.3,2271.9,10.882]
[1773640434183,11.49903368,2272.1,2271.6,3.6394066]
[1773640434369,11.49903368,2272.1,2271.5,3.6394066]
[1773640434577,11.49903368,2271.9,2271.5,3.6394066]
[1773640434775,0.00383925,2272.9,2271.6,6.22885549]
[1773640434977,11.63973894,2274.0,2272.7,0.27619503]
[1773640435181,11.63973894,2274.0,2273.0,3.62872155]
[1773640435882,11.69642643,2273.8,2273.0,3.63185674]
[1773640436381,11.69642643,2273.8,2273.0,0.00313519]
[1773640436679,11.69642643,2273.8,2273.0,3.63185674]
[1773640436979,11.69642643,2273.8,2273.0,0.00313519]
[1773640437978,0.00383925,2273.7,2273.0,0.00313519]
[1773640438178,11.68443981,2273.6,2273.0,0.00313519]
[1773640438880,11.68443981,2273.4,2273.0,0.00313519]
[1773640439479,11.68827906,2273.4,2273.0,0.00313519]
[1773640441379,11.68827906,2273.4,2273.1,5.19332719]
[1773640441580,11.68827906,2273.4,2273.2,5.19332719]
[1773640441787,11.68827906,2273.4,2273.3,5.19332719]
[1773640441989,11.68443981,2273.4,2273.3,5.19332719]
[1773640442284,11.68827906,2273.4,2273.0,0.00313519]
[1773640443683,10.89791068,2274.8,2273.1,5.42094011]
[1773640443879,10.17991068,2275.2,2274.3,3.63099707]
[1773640444185,10.17991068,2275.2,2274.0,3.63099707]
[1773640444384,10.17991068,2275.2,2273.9,3.63099707]
[1773640444682,10.17991068,2275.2,2273.9,5.90041301]
[1773640444992,10.18362465,2275.2,2274.0,5.89738934]